[Event "*** Titled Tuesday Blitz"]
[Site "Chess.com"]
[Date "2021.03.02"]
[Round "10"]
[White "Bayernbk"]
[Black "GasconJR"]
[Result "1-0"]
[WhiteElo "2551"]
[BlackElo "2447"]
[TimeControl "180+1"]
[EndTime "11:58:33 PST"]
[Termination "Bayernbk won by resignation"]

1. e4 {[%clk 0:02:59.9]} 1... c5 {[%clk 0:02:59.9]} 2. c3 {[%clk 0:02:55.4]}
2... Nf6 {[%clk 0:02:59.5]} 3. e5 {[%clk 0:02:54.5]} 3... Nd5 {[%clk 0:02:59.7]}
4. d4 {[%clk 0:02:55.2]} 4... cxd4 {[%clk 0:02:59.9]} 5. Nf3 {[%clk 0:02:55.9]}
5... Nc6 {[%clk 0:03:00]} 6. cxd4 {[%clk 0:02:54.4]} 6... d6 {[%clk 0:03:00]} 7.
Bc4 {[%clk 0:02:55]} 7... Nb6 {[%clk 0:02:57.4]} 8. Bb5 {[%clk 0:02:55.6]} 8...
dxe5 {[%clk 0:02:52.6]} 9. Nxe5 {[%clk 0:02:56.5]} 9... Bd7 {[%clk 0:02:52.7]}
10. Nxd7 {[%clk 0:02:56.3]} 10... Qxd7 {[%clk 0:02:53.1]} 11. Nc3 {[%clk
0:02:57]} 11... e6 {[%clk 0:02:52.3]} 12. O-O {[%clk 0:02:57.7]} 12... Be7
{[%clk 0:02:52.4]} 13. Qg4 {[%clk 0:02:57.9]} 13... O-O {[%clk 0:02:11.4]} 14.
Bxc6 {[%clk 0:02:56.7]} 14... bxc6 {[%clk 0:02:11.8]} 15. Bh6 {[%clk 0:02:56.3]}
15... Bf6 {[%clk 0:02:11.3]} 16. Rfd1 {[%clk 0:02:57]} 16... Kh8 {[%clk
0:02:06.6]} 17. Ne4 {[%clk 0:02:56.7]} 17... Rg8 {[%clk 0:02:02.2]} 18. Bg5
{[%clk 0:02:16.9]} 18... Bxg5 {[%clk 0:01:42.1]} 19. Nxg5 {[%clk 0:02:15.4]}
19... h6 {[%clk 0:01:38.2]} 20. Nf3 {[%clk 0:02:13.9]} 20... Rad8 {[%clk
0:01:36.5]} 21. Ne5 {[%clk 0:02:08.5]} 21... Qe8 {[%clk 0:01:35.5]} 22. Rac1
{[%clk 0:02:09]} 22... Rc8 {[%clk 0:01:02.3]} 23. Qe4 {[%clk 0:01:39.8]} 23...
Nd5 {[%clk 0:00:57.2]} 24. Rc4 {[%clk 0:01:39.9]} 24... Ne7 {[%clk 0:00:19]} 25.
Rdc1 {[%clk 0:01:36.9]} 25... Nf5 {[%clk 0:00:05.9]} 26. Rxc6 {[%clk 0:01:19.4]}
26... Rxc6 {[%clk 0:00:05.8]} 27. Rxc6 {[%clk 0:01:20]} 27... Qe7 {[%clk
0:00:05.1]} 28. g3 {[%clk 0:01:06.2]} 28... Rd8 {[%clk 0:00:04]} 29. Rc4 {[%clk
0:00:47.6]} 29... Nd6 {[%clk 0:00:03.5]} 30. Qh4 {[%clk 0:00:47.8]} 30... Qxh4
{[%clk 0:00:03]} 31. gxh4 {[%clk 0:00:48.5]} 31... Nxc4 {[%clk 0:00:02.9]} 32.
Nxf7+ {[%clk 0:00:47.9]} 32... Kg8 {[%clk 0:00:03.6]} 33. Nxd8 {[%clk
0:00:48.4]} 33... Nxb2 {[%clk 0:00:02]} 34. Nxe6 {[%clk 0:00:49]} 34... Nd3
{[%clk 0:00:02]} 35. Kg2 {[%clk 0:00:43.8]} 35... Kf7 {[%clk 0:00:02.2]} 36.
Nd8+ {[%clk 0:00:41.5]} 36... Ke7 {[%clk 0:00:02.1]} 37. Nc6+ {[%clk 0:00:41.3]}
37... Kd6 {[%clk 0:00:02.6]} 38. Nxa7 {[%clk 0:00:41.4]} 38... Kd5 {[%clk
0:00:03.3]} 39. Nb5 {[%clk 0:00:40.6]} 39... Nc1 {[%clk 0:00:03]} 40. a4 {[%clk
0:00:39.9]} 40... Ne2 {[%clk 0:00:03.4]} 41. Kf3 {[%clk 0:00:38.4]} 41... Nc1
{[%clk 0:00:03.1]} 42. Kg4 {[%clk 0:00:36.1]} 42... Nb3 {[%clk 0:00:02.9]} 43.
Kh5 {[%clk 0:00:35.4]} 43... Nxd4 {[%clk 0:00:02.6]} 44. Nxd4 {[%clk 0:00:35]}
44... Kxd4 {[%clk 0:00:03.5]} 45. Kg6 {[%clk 0:00:35.6]} 45... Kc4 {[%clk
0:00:03]} 46. Kxg7 {[%clk 0:00:36.1]} 1-0

[Event "*** Titled Tuesday Blitz"]
[Site "Chess.com"]
[Date "2021.03.02"]
[Round "10"]
[White "catzapto"]
[Black "fabianvivasz"]
[Result "0-1"]
[WhiteElo "2086"]
[BlackElo "2334"]
[TimeControl "180+1"]
[EndTime "11:58:33 PST"]
[Termination "fabianvivasz won by checkmate"]

1. e4 {[%clk 0:03:00.9]} 1... e5 {[%clk 0:02:58.7]} 2. Nf3 {[%clk 0:03:00.6]}
2... Nc6 {[%clk 0:02:58.6]} 3. d4 {[%clk 0:03:01]} 3... exd4 {[%clk 0:02:58.3]}
4. Bc4 {[%clk 0:03:01.5]} 4... Nf6 {[%clk 0:02:57.8]} 5. e5 {[%clk 0:03:01.8]}
5... d5 {[%clk 0:02:57.6]} 6. Bb5 {[%clk 0:03:02.2]} 6... Ne4 {[%clk 0:02:57.4]}
7. Nxd4 {[%clk 0:03:02.8]} 7... Bc5 {[%clk 0:02:57.3]} 8. Nxc6 {[%clk
0:03:02.5]} 8... Bxf2+ {[%clk 0:02:54.9]} 9. Kf1 {[%clk 0:03:02.8]} 9... bxc6
{[%clk 0:02:55.1]} 10. Bxc6+ {[%clk 0:03:01.9]} 10... Kf8 {[%clk 0:02:55.4]} 11.
Qd3 {[%clk 0:02:57.6]} 11... Qh4 {[%clk 0:01:51]} 12. Bxd5 {[%clk 0:01:37.8]}
12... Bb6 {[%clk 0:01:17.5]} 13. Be3 {[%clk 0:01:23.2]} 13... Ba6 {[%clk
0:00:54.9]} 14. c4 {[%clk 0:01:00.6]} 14... Ng3+ {[%clk 0:00:50.4]} 15. hxg3
{[%clk 0:00:46.8]} 15... Qxh1+ {[%clk 0:00:50]} 16. Kf2 {[%clk 0:00:46.6]} 16...
Rd8 {[%clk 0:00:42.3]} 17. Qa3+ {[%clk 0:00:45.5]} 17... Kg8 {[%clk 0:00:38.6]}
18. Bxb6 {[%clk 0:00:45.4]} 18... Rxd5 {[%clk 0:00:19.1]} 19. cxd5 {[%clk
0:00:31.6]} 19... Qf1+ {[%clk 0:00:18.3]} 20. Ke3 {[%clk 0:00:32]} 20... axb6
{[%clk 0:00:14.2]} 21. Qe7 {[%clk 0:00:20.6]} 21... h5 {[%clk 0:00:12.8]} 22.
Nc3 {[%clk 0:00:19.6]} 22... Qxa1 {[%clk 0:00:10.5]} 23. Ne4 {[%clk 0:00:18.9]}
23... Qe1+ {[%clk 0:00:10.4]} 24. Kf4 {[%clk 0:00:18.9]} 24... Qf1+ {[%clk
0:00:09.9]} 25. Ke3 {[%clk 0:00:19]} 25... Qc1+ {[%clk 0:00:09.6]} 26. Kf3
{[%clk 0:00:18.7]} 26... Qd1+ {[%clk 0:00:03.4]} 27. Ke3 {[%clk 0:00:17]} 27...
Qe2+ {[%clk 0:00:03.8]} 28. Kf4 {[%clk 0:00:16.8]} 28... Qg4+ {[%clk 0:00:03.8]}
29. Ke3 {[%clk 0:00:16.3]} 29... Kh7 {[%clk 0:00:04.1]} 30. Ng5+ {[%clk
0:00:15.5]} 30... Kg6 {[%clk 0:00:04.1]} 31. Qxf7+ {[%clk 0:00:14.7]} 31... Kxg5
{[%clk 0:00:04.6]} 32. Qxg7+ {[%clk 0:00:14.9]} 32... Kf5 {[%clk 0:00:05.1]} 33.
Qxh8 {[%clk 0:00:14.9]} 33... Qe4+ {[%clk 0:00:04.6]} 34. Kf2 {[%clk 0:00:14.7]}
34... Qd4+ {[%clk 0:00:04.8]} 35. Kf3 {[%clk 0:00:14.5]} 35... Qd3+ {[%clk
0:00:04.5]} 36. Kf2 {[%clk 0:00:14.5]} 36... Qf1+ {[%clk 0:00:05.3]} 37. Ke3
{[%clk 0:00:14.4]} 37... Qe2+ {[%clk 0:00:06]} 38. Kd4 {[%clk 0:00:14.1]} 38...
Qd3# {[%clk 0:00:06.7]} 0-1

[Event "*** Titled Tuesday Blitz"]
[Site "Chess.com"]
[Date "2021.03.02"]
[Round "10"]
[White "KruHor"]
[Black "Supernotar"]
[Result "1/2-1/2"]
[WhiteElo "2551"]
[BlackElo "2679"]
[TimeControl "180+1"]
[EndTime "11:58:34 PST"]
[Termination "Game drawn by repetition"]

1. e4 {[%clk 0:02:58.8]} 1... c6 {[%clk 0:03:00.1]} 2. d4 {[%clk 0:02:58.1]}
2... d5 {[%clk 0:03:01]} 3. Nd2 {[%clk 0:02:57.7]} 3... dxe4 {[%clk 0:03:00.8]}
4. Nxe4 {[%clk 0:02:57.2]} 4... Bf5 {[%clk 0:03:00.7]} 5. Bd3 {[%clk 0:02:56.6]}
5... e6 {[%clk 0:02:59.7]} 6. Nf3 {[%clk 0:02:55.3]} 6... Be7 {[%clk 0:02:55.5]}
7. Qe2 {[%clk 0:02:54.6]} 7... Nd7 {[%clk 0:02:39.4]} 8. Bf4 {[%clk 0:02:52.8]}
8... Bxe4 {[%clk 0:02:34.6]} 9. Qxe4 {[%clk 0:02:51.4]} 9... Ngf6 {[%clk
0:02:34.7]} 10. Qe2 {[%clk 0:02:50.8]} 10... Nd5 {[%clk 0:02:32.8]} 11. Bg3
{[%clk 0:02:45.5]} 11... O-O {[%clk 0:02:30.9]} 12. c3 {[%clk 0:02:44.2]} 12...
b5 {[%clk 0:02:29.6]} 13. O-O {[%clk 0:02:42.2]} 13... a6 {[%clk 0:02:27.5]} 14.
Rad1 {[%clk 0:02:27.3]} 14... Bf6 {[%clk 0:02:24]} 15. Bb1 {[%clk 0:02:26.2]}
15... g6 {[%clk 0:02:20.3]} 16. h4 {[%clk 0:02:24.3]} 16... h5 {[%clk
0:02:15.6]} 17. Qe4 {[%clk 0:02:06.1]} 17... Re8 {[%clk 0:02:07.4]} 18. Rfe1
{[%clk 0:02:04.7]} 18... Kg7 {[%clk 0:02:02.3]} 19. Ne5 {[%clk 0:01:56.1]} 19...
Nxe5 {[%clk 0:01:47]} 20. dxe5 {[%clk 0:01:28.9]} 20... Be7 {[%clk 0:01:46.9]}
21. Rd3 {[%clk 0:01:27.8]} 21... Qb6 {[%clk 0:01:36.2]} 22. Bf4 {[%clk
0:01:19.7]} 22... Nxf4 {[%clk 0:01:25.1]} 23. Qxf4 {[%clk 0:01:19.2]} 23... Rad8
{[%clk 0:00:54.4]} 24. Rf3 {[%clk 0:01:18.6]} 24... Rf8 {[%clk 0:00:53.4]} 25.
g4 {[%clk 0:01:18.1]} 25... hxg4 {[%clk 0:00:49.8]} 26. Qxg4 {[%clk 0:01:17.9]}
26... Rh8 {[%clk 0:00:30.8]} 27. Rxf7+ {[%clk 0:00:43.1]} 27... Kxf7 {[%clk
0:00:31.7]} 28. Bxg6+ {[%clk 0:00:42.2]} 28... Kf8 {[%clk 0:00:21.5]} 29. Qf4+
{[%clk 0:00:40.9]} 29... Kg7 {[%clk 0:00:21.3]} 30. Qf7+ {[%clk 0:00:34.4]}
30... Kh6 {[%clk 0:00:21.5]} 31. Qxe7 {[%clk 0:00:31.3]} 31... Kxg6 {[%clk
0:00:20.1]} 32. Qxe6+ {[%clk 0:00:29.5]} 32... Kh5 {[%clk 0:00:15.2]} 33. Qf5+
{[%clk 0:00:25.9]} 33... Kh6 {[%clk 0:00:13.7]} 34. Qf6+ {[%clk 0:00:20.5]}
34... Kh7 {[%clk 0:00:13.4]} 35. Qf7+ {[%clk 0:00:19.2]} 35... Kh6 {[%clk
0:00:13.6]} 36. Qf6+ {[%clk 0:00:16.1]} 36... Kh7 {[%clk 0:00:13.8]} 37. Qf7+
{[%clk 0:00:06]} 37... Kh6 {[%clk 0:00:14]} 38. Qf6+ {[%clk 0:00:03.1]} 1/2-1/2

[Event "*** Titled Tuesday Blitz"]
[Site "Chess.com"]
[Date "2021.03.02"]
[Round "10"]
[White "Aygehovit1992"]
[Black "oogee"]
[Result "1-0"]
[WhiteElo "2637"]
[BlackElo "2402"]
[TimeControl "180+1"]
[EndTime "11:58:34 PST"]
[Termination "Aygehovit1992 won by resignation"]

1. e4 {[%clk 0:03:00.9]} 1... c5 {[%clk 0:02:59.6]} 2. Nf3 {[%clk 0:03:01]} 2...
d6 {[%clk 0:02:59.7]} 3. d4 {[%clk 0:03:01.7]} 3... cxd4 {[%clk 0:03:00.4]} 4.
Nxd4 {[%clk 0:03:02.6]} 4... Nf6 {[%clk 0:03:00.8]} 5. Nc3 {[%clk 0:03:03.2]}
5... g6 {[%clk 0:03:00.8]} 6. Be3 {[%clk 0:03:02.1]} 6... Bg7 {[%clk 0:03:01]}
7. f3 {[%clk 0:03:02.9]} 7... Nc6 {[%clk 0:03:01]} 8. Qd2 {[%clk 0:03:03.6]}
8... O-O {[%clk 0:03:01.2]} 9. O-O-O {[%clk 0:03:02.9]} 9... d5 {[%clk
0:03:01.2]} 10. exd5 {[%clk 0:03:03.8]} 10... Nxd5 {[%clk 0:03:00.9]} 11. Nxc6
{[%clk 0:03:04]} 11... bxc6 {[%clk 0:03:00.6]} 12. Bd4 {[%clk 0:03:04.2]} 12...
Bxd4 {[%clk 0:02:57.7]} 13. Qxd4 {[%clk 0:03:05.1]} 13... Qb6 {[%clk 0:02:58]}
14. Na4 {[%clk 0:02:57.7]} 14... Qc7 {[%clk 0:02:52.7]} 15. Bc4 {[%clk
0:02:56.4]} 15... Nf4 {[%clk 0:02:41]} 16. Rd2 {[%clk 0:02:51.2]} 16... e5
{[%clk 0:02:36.4]} 17. Qc5 {[%clk 0:02:51.1]} 17... Be6 {[%clk 0:02:32.6]} 18.
Re1 {[%clk 0:02:46]} 18... Rfe8 {[%clk 0:02:09.4]} 19. Nc3 {[%clk 0:02:27.1]}
19... Bxc4 {[%clk 0:01:49.3]} 20. Qxc4 {[%clk 0:02:28]} 20... Kg7 {[%clk
0:01:42.9]} 21. Nb5 {[%clk 0:02:25.2]} 21... Qa5 {[%clk 0:01:31.6]} 22. Nd6
{[%clk 0:02:23.5]} 22... Re6 {[%clk 0:01:25.7]} 23. c3 {[%clk 0:01:37.9]} 23...
Rd8 {[%clk 0:01:13.4]} 24. Red1 {[%clk 0:01:33.8]} 24... Nd5 {[%clk 0:01:12.6]}
25. Nb7 {[%clk 0:01:27.3]} 25... Qb6 {[%clk 0:01:06.7]} 26. Nxd8 {[%clk
0:01:25]} 26... Qxd8 {[%clk 0:01:07]} 27. g3 {[%clk 0:01:21.8]} 27... Qg5 {[%clk
0:01:05.5]} 28. Qe2 {[%clk 0:01:17.6]} 28... Re7 {[%clk 0:00:44.8]} 29. c4
{[%clk 0:01:12.5]} 29... Nb4 {[%clk 0:00:41.8]} 30. a3 {[%clk 0:01:11.6]} 30...
Na6 {[%clk 0:00:33.8]} 31. b4 {[%clk 0:01:07.2]} 31... Nc7 {[%clk 0:00:32.2]}
32. Qe4 {[%clk 0:00:58.2]} 32... a5 {[%clk 0:00:28.1]} 33. bxa5 {[%clk
0:00:53.5]} 33... Ne6 {[%clk 0:00:21.9]} 34. f4 {[%clk 0:00:37.6]} 34... exf4
{[%clk 0:00:21.5]} 35. gxf4 {[%clk 0:00:36.9]} 35... Qxa5 {[%clk 0:00:20.9]} 36.
Qe5+ {[%clk 0:00:36.6]} 36... Qxe5 {[%clk 0:00:21.1]} 37. fxe5 {[%clk
0:00:37.5]} 37... Nc5 {[%clk 0:00:21.5]} 38. Re2 {[%clk 0:00:36.9]} 38... Ra7
{[%clk 0:00:18.3]} 39. Kb2 {[%clk 0:00:35.8]} 39... Rb7+ {[%clk 0:00:18.4]} 40.
Ka2 {[%clk 0:00:36]} 40... Na4 {[%clk 0:00:18.7]} 41. Rc1 {[%clk 0:00:35.4]}
41... Rd7 {[%clk 0:00:18.3]} 42. c5 {[%clk 0:00:31.8]} 42... Rd3 {[%clk
0:00:18.1]} 43. e6 {[%clk 0:00:27.9]} 43... Nc3+ {[%clk 0:00:17.8]} 44. Rxc3
{[%clk 0:00:27.6]} 1-0

[Event "*** Titled Tuesday Blitz"]
[Site "Chess.com"]
[Date "2021.03.02"]
[Round "10"]
[White "andriipalchuk"]
[Black "stasiek18"]
[Result "1-0"]
[WhiteElo "2549"]
[BlackElo "2422"]
[TimeControl "180+1"]
[EndTime "11:58:34 PST"]
[Termination "andriipalchuk won on time"]

1. e4 {[%clk 0:03:00.9]} 1... e6 {[%clk 0:02:57.7]} 2. d4 {[%clk 0:02:59.2]}
2... d5 {[%clk 0:02:58.6]} 3. Nd2 {[%clk 0:02:59.8]} 3... c5 {[%clk 0:02:58.3]}
4. exd5 {[%clk 0:02:58.4]} 4... Qxd5 {[%clk 0:02:57.4]} 5. dxc5 {[%clk
0:02:57.8]} 5... Bxc5 {[%clk 0:02:54.8]} 6. Ngf3 {[%clk 0:02:55.9]} 6... Nf6
{[%clk 0:02:53.1]} 7. Bc4 {[%clk 0:02:56.5]} 7... Qd6 {[%clk 0:02:43.3]} 8. Qe2
{[%clk 0:02:53.9]} 8... Nc6 {[%clk 0:02:41]} 9. c3 {[%clk 0:02:53.4]} 9... a6
{[%clk 0:02:39.3]} 10. O-O {[%clk 0:02:51.9]} 10... b5 {[%clk 0:02:36.8]} 11.
Bb3 {[%clk 0:02:50]} 11... Bb7 {[%clk 0:02:36.7]} 12. Bc2 {[%clk 0:02:44.9]}
12... O-O {[%clk 0:02:14.2]} 13. Ne4 {[%clk 0:02:24.2]} 13... Nxe4 {[%clk
0:02:14]} 14. Qxe4 {[%clk 0:02:24.9]} 14... f5 {[%clk 0:02:14.5]} 15. Qe2 {[%clk
0:02:24.3]} 15... Rae8 {[%clk 0:02:04.6]} 16. Rd1 {[%clk 0:02:23]} 16... Qc7
{[%clk 0:02:04.4]} 17. Bb3 {[%clk 0:02:11.9]} 17... Kh8 {[%clk 0:02:03.2]} 18.
Ng5 {[%clk 0:02:07.9]} 18... Na5 {[%clk 0:01:48.1]} 19. Bxe6 {[%clk 0:01:51.8]}
19... Nc4 {[%clk 0:01:09.5]} 20. Qh5 {[%clk 0:01:20]} 20... g6 {[%clk
0:01:09.4]} 21. Qh3 {[%clk 0:01:20.1]} 21... Ne5 {[%clk 0:00:41.6]} 22. Bf4
{[%clk 0:01:14.7]} 22... Bxf2+ {[%clk 0:00:41.4]} 23. Kh1 {[%clk 0:00:45]} 23...
Re7 {[%clk 0:00:38.9]} 24. Rd2 {[%clk 0:00:20.5]} 24... Bc5 {[%clk 0:00:10.9]}
25. Re1 {[%clk 0:00:21]} 25... Ng4 {[%clk 0:00:03.6]} 26. Bxc7 {[%clk
0:00:20.3]} 26... Rxc7 {[%clk 0:00:04.5]} 27. Qh4 {[%clk 0:00:10.1]} 27... Be7
{[%clk 0:00:03.5]} 28. Qg3 {[%clk 0:00:08.9]} 28... Bxg5 {[%clk 0:00:03.2]} 29.
Rde2 {[%clk 0:00:06.4]} 29... Bd8 {[%clk 0:00:02.2]} 30. h3 {[%clk 0:00:06]}
30... Nf6 {[%clk 0:00:01.6]} 31. Bb3 {[%clk 0:00:05.9]} 31... Rg7 {[%clk
0:00:01.5]} 32. Qe5 {[%clk 0:00:06]} 32... Bc7 {[%clk 0:00:01.4]} 33. Qd4 {[%clk
0:00:06.1]} 1-0

[Event "*** Titled Tuesday Blitz"]
[Site "Chess.com"]
[Date "2021.03.02"]
[Round "10"]
[White "Rondo_Capriccioso"]
[Black "elextranjero00"]
[Result "0-1"]
[WhiteElo "2481"]
[BlackElo "2652"]
[TimeControl "180+1"]
[EndTime "11:58:35 PST"]
[Termination "elextranjero00 won by resignation"]

1. e4 {[%clk 0:03:00.9]} 1... c5 {[%clk 0:02:58.7]} 2. Nf3 {[%clk 0:03:00.6]}
2... e6 {[%clk 0:02:58.9]} 3. d4 {[%clk 0:03:01]} 3... cxd4 {[%clk 0:02:59.3]}
4. Nxd4 {[%clk 0:03:01.5]} 4... a6 {[%clk 0:02:59.8]} 5. Bd3 {[%clk 0:03:01.6]}
5... Bc5 {[%clk 0:02:56.8]} 6. Nb3 {[%clk 0:03:01.8]} 6... Be7 {[%clk
0:02:56.9]} 7. Qg4 {[%clk 0:03:01.2]} 7... g6 {[%clk 0:02:56.7]} 8. Qe2 {[%clk
0:02:56.6]} 8... d6 {[%clk 0:02:56.1]} 9. c4 {[%clk 0:02:51.5]} 9... Nd7 {[%clk
0:02:53.9]} 10. Bd2 {[%clk 0:02:51.3]} 10... b6 {[%clk 0:02:49.1]} 11. O-O
{[%clk 0:02:49.2]} 11... Bb7 {[%clk 0:02:48.5]} 12. Nc3 {[%clk 0:02:49.6]} 12...
Qc7 {[%clk 0:02:47.2]} 13. Rac1 {[%clk 0:02:47.1]} 13... Ngf6 {[%clk 0:02:32.4]}
14. Bh6 {[%clk 0:02:46.8]} 14... Ne5 {[%clk 0:02:28.8]} 15. h3 {[%clk
0:02:45.2]} 15... Nh5 {[%clk 0:02:08.4]} 16. Nd4 {[%clk 0:02:33.6]} 16... Nxd3
{[%clk 0:02:01.5]} 17. Qxd3 {[%clk 0:02:33.6]} 17... g5 {[%clk 0:02:02.1]} 18.
Nde2 {[%clk 0:02:04.4]} 18... Rg8 {[%clk 0:01:58.4]} 19. f4 {[%clk 0:01:35.4]}
19... gxf4 {[%clk 0:01:53.7]} 20. Nxf4 {[%clk 0:01:35.9]} 20... Qc5+ {[%clk
0:01:49.1]} 21. Kh2 {[%clk 0:01:29.5]} 21... Qe5 {[%clk 0:01:34.9]} 22. Qf3
{[%clk 0:01:16.9]} 22... Ng3 {[%clk 0:01:23.8]} 23. Rf2 {[%clk 0:01:14.1]} 23...
Nf5 {[%clk 0:01:19.6]} 24. exf5 {[%clk 0:00:23.3]} 24... Bxf3 {[%clk 0:01:18.4]}
25. Rxf3 {[%clk 0:00:24.2]} 25... O-O-O {[%clk 0:01:00.5]} 26. fxe6 {[%clk
0:00:21.1]} 26... fxe6 {[%clk 0:01:00.2]} 27. Kh1 {[%clk 0:00:16.4]} 27... Bg5
{[%clk 0:00:56.3]} 28. Bxg5 {[%clk 0:00:15.1]} 28... Qxg5 {[%clk 0:00:56]} 29.
Rc2 {[%clk 0:00:15.1]} 29... Rde8 {[%clk 0:00:50.2]} 30. Ne4 {[%clk 0:00:14.9]}
30... Qe5 {[%clk 0:00:47.8]} 31. Re2 {[%clk 0:00:13.4]} 31... Rgf8 {[%clk
0:00:38.1]} 32. Nd3 {[%clk 0:00:13.3]} 32... Qd4 {[%clk 0:00:33.2]} 33. Rfe3
{[%clk 0:00:13.5]} 33... Rf1+ {[%clk 0:00:31.5]} 34. Kh2 {[%clk 0:00:14.2]}
34... Kb8 {[%clk 0:00:26.5]} 35. Ng3 {[%clk 0:00:14.1]} 35... Rd1 {[%clk
0:00:24.6]} 36. Nb4 {[%clk 0:00:12.8]} 36... Kb7 {[%clk 0:00:22.2]} 37. b3
{[%clk 0:00:11.4]} 37... Rd2 {[%clk 0:00:16.3]} 38. Re1 {[%clk 0:00:09.8]} 38...
Qf4 {[%clk 0:00:16.4]} 39. Rf3 {[%clk 0:00:08.9]} 39... Qxf3 {[%clk 0:00:15.2]}
0-1

[Event "*** Titled Tuesday Blitz"]
[Site "Chess.com"]
[Date "2021.03.02"]
[Round "10"]
[White "wonderfultime"]
[Black "Gabix_94"]
[Result "1-0"]
[WhiteElo "2924"]
[BlackElo "2811"]
[TimeControl "180+1"]
[EndTime "11:58:36 PST"]
[Termination "wonderfultime won by resignation"]

1. d4 {[%clk 0:03:00.9]} 1... g6 {[%clk 0:02:59.8]} 2. Nf3 {[%clk 0:03:01.1]}
2... Bg7 {[%clk 0:03:00.1]} 3. c3 {[%clk 0:03:01.8]} 3... d6 {[%clk 0:03:00.5]}
4. Bg5 {[%clk 0:03:02.2]} 4... c6 {[%clk 0:02:57.7]} 5. Nbd2 {[%clk 0:03:02.2]}
5... Qc7 {[%clk 0:02:57.2]} 6. e4 {[%clk 0:03:02.2]} 6... h6 {[%clk 0:02:57]} 7.
Bh4 {[%clk 0:03:02.1]} 7... Nd7 {[%clk 0:02:56.7]} 8. Bc4 {[%clk 0:03:02.4]}
8... e5 {[%clk 0:02:54.2]} 9. O-O {[%clk 0:03:02.5]} 9... Ngf6 {[%clk 0:02:54]}
10. Re1 {[%clk 0:03:02.9]} 10... O-O {[%clk 0:02:53.9]} 11. Qc2 {[%clk
0:03:03.3]} 11... b5 {[%clk 0:02:53.6]} 12. Bf1 {[%clk 0:03:02.2]} 12... Bb7
{[%clk 0:02:53]} 13. Rad1 {[%clk 0:03:01.3]} 13... Rfe8 {[%clk 0:02:51.9]} 14.
Bg3 {[%clk 0:02:43.8]} 14... Nh5 {[%clk 0:02:49.3]} 15. a4 {[%clk 0:02:41.5]}
15... a6 {[%clk 0:02:48.3]} 16. b4 {[%clk 0:02:41.9]} 16... Nxg3 {[%clk
0:02:45.9]} 17. hxg3 {[%clk 0:02:42.1]} 17... Rad8 {[%clk 0:02:27.3]} 18. Nb3
{[%clk 0:02:31.6]} 18... Nb6 {[%clk 0:02:21.4]} 19. dxe5 {[%clk 0:02:27.6]}
19... dxe5 {[%clk 0:02:17.9]} 20. a5 {[%clk 0:02:16.5]} 20... Na4 {[%clk
0:02:16.3]} 21. c4 {[%clk 0:01:28.9]} 21... Qe7 {[%clk 0:02:10.9]} 22. c5 {[%clk
0:01:27.7]} 22... Bc8 {[%clk 0:02:08.1]} 23. Nbd2 {[%clk 0:01:26.6]} 23... Be6
{[%clk 0:02:03.9]} 24. Nc4 {[%clk 0:01:21.3]} 24... Nxc5 {[%clk 0:01:33.3]} 25.
Rxd8 {[%clk 0:01:16.6]} 25... Rxd8 {[%clk 0:01:31.9]} 26. Ncxe5 {[%clk 0:01:17]}
26... Na4 {[%clk 0:01:03.6]} 27. Nxc6 {[%clk 0:01:02.1]} 27... Qc7 {[%clk
0:01:03.3]} 28. Rc1 {[%clk 0:01:02.6]} 28... Rc8 {[%clk 0:01:01.1]} 29. e5
{[%clk 0:01:01.4]} 29... Kh7 {[%clk 0:00:56]} 30. Nfd4 {[%clk 0:00:57.2]} 30...
Bd5 {[%clk 0:00:53]} 31. f4 {[%clk 0:00:45.1]} 31... Bf8 {[%clk 0:00:46.3]} 32.
f5 {[%clk 0:00:41]} 32... Qd7 {[%clk 0:00:38.4]} 33. fxg6+ {[%clk 0:00:35.6]}
33... fxg6 {[%clk 0:00:39.3]} 34. Bd3 {[%clk 0:00:36.5]} 34... Bxb4 {[%clk
0:00:21.3]} 35. Bxg6+ {[%clk 0:00:36.3]} 35... Kh8 {[%clk 0:00:21.9]} 36. Bf5
{[%clk 0:00:35.4]} 36... Rxc6 {[%clk 0:00:13.5]} 37. Nxc6 {[%clk 0:00:25.1]}
37... Qxc6 {[%clk 0:00:09.4]} 38. Qxc6 {[%clk 0:00:24.1]} 38... Bxc6 {[%clk
0:00:10.3]} 39. Rxc6 {[%clk 0:00:24.6]} 39... Bxa5 {[%clk 0:00:11.2]} 40. Rxa6
{[%clk 0:00:24.3]} 40... Bc3 {[%clk 0:00:11.6]} 41. e6 {[%clk 0:00:24.4]} 41...
Kg7 {[%clk 0:00:12.5]} 42. Ra7+ {[%clk 0:00:21.5]} 42... Kf6 {[%clk 0:00:12.5]}
43. Rf7+ {[%clk 0:00:22]} 43... Ke5 {[%clk 0:00:11.2]} 44. e7 {[%clk 0:00:22.9]}
44... Bd4+ {[%clk 0:00:11.9]} 45. Kh2 {[%clk 0:00:23]} 1-0

[Event "*** Titled Tuesday Blitz"]
[Site "Chess.com"]
[Date "2021.03.02"]
[Round "10"]
[White "MaxLeto"]
[Black "Grineva_Marianna"]
[Result "0-1"]
[WhiteElo "2409"]
[BlackElo "2261"]
[TimeControl "180+1"]
[EndTime "11:58:36 PST"]
[Termination "Grineva_Marianna won on time"]

1. g4 {[%clk 0:03:00.9]} 1... d5 {[%clk 0:02:56.9]} 2. Bg2 {[%clk 0:02:59.3]}
2... c6 {[%clk 0:02:56.5]} 3. g5 {[%clk 0:02:57.9]} 3... Nd7 {[%clk 0:02:51.4]}
4. d4 {[%clk 0:02:58.8]} 4... e5 {[%clk 0:02:47.3]} 5. dxe5 {[%clk 0:02:46.3]}
5... Nxe5 {[%clk 0:02:48.2]} 6. h4 {[%clk 0:02:40.5]} 6... h6 {[%clk 0:02:46.1]}
7. Qd4 {[%clk 0:02:25.6]} 7... Ng6 {[%clk 0:02:31.4]} 8. h5 {[%clk 0:02:16.6]}
8... N6e7 {[%clk 0:02:31.4]} 9. e4 {[%clk 0:01:43]} 9... Be6 {[%clk 0:02:04.5]}
10. Nc3 {[%clk 0:01:38.7]} 10... dxe4 {[%clk 0:02:02.3]} 11. Qxe4 {[%clk
0:01:37.6]} 11... hxg5 {[%clk 0:01:58.7]} 12. Bxg5 {[%clk 0:01:36.4]} 12... Qa5
{[%clk 0:01:57.7]} 13. Nf3 {[%clk 0:01:27.4]} 13... Nh6 {[%clk 0:01:47.9]} 14.
O-O-O {[%clk 0:01:13.3]} 14... Ng4 {[%clk 0:01:38.8]} 15. Qe2 {[%clk 0:00:54.9]}
15... Nf5 {[%clk 0:01:22.9]} 16. Bh3 {[%clk 0:00:41.3]} 16... Ngh6 {[%clk
0:01:06.2]} 17. Rd3 {[%clk 0:00:04.1]} 17... Bb4 {[%clk 0:01:04.8]} 18. Rhd1
{[%clk 0:00:02.9]} 18... O-O {[%clk 0:00:52.6]} 19. a3 {[%clk 0:00:03.1]} 19...
Bxc3 {[%clk 0:00:51.9]} 20. Rxc3 {[%clk 0:00:04]} 20... Rae8 {[%clk 0:00:51.1]}
21. Qd2 {[%clk 0:00:04]} 21... Bd5 {[%clk 0:00:44.6]} 22. Bxf5 {[%clk
0:00:04.1]} 22... Nxf5 {[%clk 0:00:43.9]} 23. Nd4 {[%clk 0:00:04.2]} 23... Nxd4
{[%clk 0:00:43.5]} 24. Qxd4 {[%clk 0:00:05.1]} 24... Qb6 {[%clk 0:00:43.1]} 25.
Qg4 {[%clk 0:00:04.6]} 25... Re4 {[%clk 0:00:40.7]} 26. f4 {[%clk 0:00:04.3]}
26... Qf2 {[%clk 0:00:37.7]} 27. Rf3 {[%clk 0:00:02.4]} 27... Qc5 {[%clk
0:00:25.6]} 28. Bf6 {[%clk 0:00:02.4]} 28... g6 {[%clk 0:00:25.1]} 29. hxg6
{[%clk 0:00:02.8]} 29... Re2 {[%clk 0:00:20.6]} 30. c3 {[%clk 0:00:02.3]} 30...
Bxf3 {[%clk 0:00:19.7]} 31. Qh5 {[%clk 0:00:01.9]} 31... Qe3+ {[%clk 0:00:19.9]}
32. Kb1 {[%clk 0:00:01.8]} 32... fxg6 {[%clk 0:00:19.8]} 33. Qh8+ {[%clk
0:00:01.6]} 33... Kf7 {[%clk 0:00:18.9]} 34. Qg7+ {[%clk 0:00:02.1]} 34... Ke6
{[%clk 0:00:16.9]} 35. Qe7+ {[%clk 0:00:02.3]} 35... Kf5 {[%clk 0:00:17.4]} 36.
Qd7+ {[%clk 0:00:02.3]} 36... Kxf4 {[%clk 0:00:17.1]} 37. Qd6+ {[%clk 0:00:02]}
37... Kf5 {[%clk 0:00:17.1]} 38. Rg1 {[%clk 0:00:01.3]} 38... Qe4+ {[%clk
0:00:16.7]} 0-1